bitfinex/quotes_SOLUSD_20230120
["timestamp","ask_amount","ask_price","bid_price","bid_amount"]
[1674214776213,21.92,21.168,21.153,35.46]
[1674214776424,62.44,21.167,21.15,10.0]
[1674214776638,11.92,21.166,21.15,10.0]
[1674214776843,17.0,21.165,21.15,10.0]
[1674214777160,0.96,21.164,21.15,10.0]
[1674214777577,0.96,21.165,21.15,10.0]
[1674214780101,0.96,21.165,21.151,35.47]
[1674214780522,0.96,21.164,21.147,35.47]
[1674214780727,35.45,21.163,21.147,35.47]
[1674214781061,27.96,21.162,21.147,35.47]
[1674214781267,0.96,21.161,21.147,35.47]
[1674214781469,15.2,21.16,21.146,45.47]
[1674214781690,17.0,21.159,21.147,20.0]
[1674214782530,0.96,21.158,21.147,20.0]
[1674214784291,0.96,21.157,21.147,20.0]
[1674214784510,0.96,21.156,21.147,20.0]
[1674214784848,0.96,21.155,21.144,20.0]
[1674214785029,0.96,21.154,21.144,20.0]
[1674214785467,0.96,21.153,21.144,55.48]
[1674214785667,0.96,21.152,21.144,20.0]
[1674214786088,0.96,21.152,21.143,35.48]
[1674214786306,0.96,21.151,21.14,35.48]
[1674214786517,0.96,21.15,21.139,35.49]
[1674214787559,0.96,21.149,21.137,35.49]
[1674214787771,0.96,21.149,21.138,10.0]
[1674214787976,0.96,21.15,21.138,10.0]
[1674214788186,10.0,21.154,21.138,10.0]
[1674214788501,18.92,21.153,21.14,10.0]
[1674214788928,18.92,21.153,21.139,35.49]
[1674214789136,10.0,21.152,21.139,35.49]
[1674214789354,18.92,21.151,21.139,35.49]
[1674214791469,18.92,21.151,21.139,32.99]
[1674214792202,10.0,21.154,21.139,32.99]
[1674214792415,116.5468,21.157,21.14,1.92]
[1674214792604,116.5468,21.157,21.141,35.48]
[1674214792809,116.5468,21.157,21.142,10.0]
[1674214793661,0.96,21.156,21.142,10.0]
[1674214793879,0.96,21.155,21.142,10.0]
[1674214794811,0.96,21.154,21.142,10.0]
[1674214795233,0.96,21.155,21.142,7.5]
[1674214796810,0.96,21.155,21.141,35.48]
[1674214797016,10.96,21.155,21.141,35.48]
[1674214797234,17.96,21.154,21.141,35.48]
[1674214797441,10.96,21.153,21.141,35.48]
[1674214797669,17.96,21.152,21.141,35.48]
[1674214797880,0.96,21.151,21.141,35.48]
[1674214798611,0.96,21.151,21.14,35.35]
[1674214800492,0.96,21.15,21.139,44.48]
[1674214800823,0.96,21.149,21.139,44.48]
[1674214802377,0.96,21.15,21.139,44.48]
[1674214802591,17.0,21.152,21.139,44.48]
[1674214802803,17.0,21.154,21.139,44.48]
[1674214803124,1.92,21.153,21.139,44.48]
[1674214803341,10.0,21.156,21.139,44.48]
[1674214805019,10.0,21.153,21.139,44.48]
[1674214805223,18.92,21.152,21.139,44.48]
[1674214807136,18.92,21.152,21.139,34.48]
[1674214807971,18.92,21.152,21.14,10.0]
[1674214808491,1.92,21.152,21.14,10.0]
[1674214809664,0.96,21.152,21.14,10.0]
[1674214809875,1.92,21.153,21.14,10.0]
[1674214810051,1.92,21.153,21.142,10.0]
[1674214812267,11.92,21.153,21.139,32.69]
[1674214812482,17.0,21.152,21.138,10.0]
[1674214812685,1.92,21.151,21.138,10.0]
[1674214812894,1.92,21.151,21.14,10.0]
[1674214814277,35.46,21.156,21.14,10.0]
[1674214814469,116.5468,21.157,21.142,10.0]
[1674214815531,17.96,21.156,21.142,10.0]
[1674214815742,0.96,21.155,21.142,10.0]
[1674214815961,0.96,21.154,21.142,10.0]
[1674214816168,0.96,21.153,21.142,10.0]
[1674214819317,0.96,21.153,21.143,30.58]
[1674214819837,0.96,21.153,21.142,10.0]
[1674214820050,0.96,21.152,21.142,10.0]
[1674214820257,0.96,21.151,21.142,10.0]
[1674214820485,0.96,21.152,21.142,10.0]
[1674214820689,10.0,21.156,21.142,10.0]
[1674214820879,0.96,21.155,21.142,10.0]
[1674214821520,10.96,21.156,21.142,10.0]
[1674214821950,17.96,21.155,21.142,10.0]
[1674214822152,0.96,21.154,21.142,10.0]
[1674214822359,0.96,21.153,21.142,10.0]
[1674214822571,0.96,21.152,21.142,10.0]
[1674214824143,0.96,21.151,21.141,30.2]
[1674214824474,0.96,21.15,21.139,27.72]
[1674214825086,10.0,21.154,21.14,10.0]
[1674214825301,152.0068,21.157,21.142,10.0]
[1674214825517,116.5468,21.157,21.142,10.0]
[1674214826043,116.5468,21.157,21.141,27.11]
[1674214826375,10.0,21.154,21.14,10.0]
[1674214826563,18.92,21.153,21.14,10.0]
[1674214827319,17.96,21.153,21.14,10.0]
[1674214827512,17.0,21.152,21.14,10.0]
[1674214827726,0.96,21.153,21.14,10.0]
[1674214828250,0.96,21.154,21.14,10.0]
[1674214828477,10.96,21.154,21.14,10.0]
[1674214828684,17.96,21.153,21.14,10.0]
[1674214828899,0.96,21.152,21.14,10.0]
[1674214833321,0.96,21.152,21.141,25.74]
[1674214833517,0.96,21.152,21.142,10.0]
[1674214833733,17.0,21.153,21.142,10.0]
[1674214834890,17.0,21.155,21.142,10.0]
[1674214835109,0.96,21.154,21.142,10.0]
[1674214835307,0.96,21.154,21.144,10.0]
[1674214837946,17.0,21.156,21.144,10.0]
[1674214838776,17.0,21.156,21.146,10.0]
[1674214839200,17.0,21.156,21.147,20.0]
[1674214840178,17.0,21.156,21.148,10.0]
[1674214840687,15.2,21.16,21.148,10.0]
[1674214842163,17.96,21.159,21.148,10.0]
[1674214844365,15.2,21.16,21.148,10.0]
[1674214844581,122.2369,21.164,21.148,10.0]
[1674214845519,17.0,21.162,21.148,10.0]
[1674214845727,17.96,21.162,21.148,10.0]
[1674214852361,17.0,21.162,21.148,10.0]
[1674214852873,17.0,21.163,21.15,10.0]
[1674214853289,35.44,21.165,21.15,10.0]
[1674214853518,55.44,21.168,21.151,1.92]
[1674214853835,55.44,21.168,21.151,37.39]
[1674214854143,55.44,21.168,21.152,10.0]
[1674214854357,10.0,21.167,21.152,10.0]
[1674214854553,17.0,21.166,21.152,10.0]
[1674214854987,10.0,21.167,21.152,10.0]
[1674214855729,55.44,21.168,21.152,10.0]
[1674214856034,10.96,21.167,21.152,10.0]
[1674214856559,17.0,21.166,21.152,10.0]
[1674214856964,0.96,21.165,21.151,35.47]
[1674214857173,47.36,21.165,21.147,55.47]
[1674214857390,47.36,21.165,21.147,20.0]
[1674214857610,10.0,21.163,21.147,20.0]
[1674214857820,54.37,21.162,21.147,20.0]
[1674214858037,10.0,21.161,21.147,20.0]
[1674214858226,17.96,21.16,21.147,20.0]
[1674214859804,10.0,21.158,21.144,35.48]
[1674214860010,38.92,21.157,21.143,35.48]
[1674214860341,10.0,21.156,21.143,35.48]
[1674214860546,10.0,21.154,21.143,35.48]
[1674214860754,17.96,21.153,21.142,116.7966]
[1674214860958,10.0,21.152,21.142,116.7966]
[1674214861397,17.0,21.151,21.142,116.7966]
[1674214864657,35.46,21.155,21.142,116.7966]
[1674214864850,10.0,21.156,21.143,10.0]
[1674214866125,10.0,21.154,21.142,116.7966]
[1674214866309,17.0,21.153,21.142,116.7966]
[1674214868758,1.92,21.152,21.142,116.7966]
[1674214869491,11.92,21.152,21.142,116.7966]
[1674214869686,17.0,21.151,21.142,116.7966]
[1674214870760,0.96,21.15,21.142,116.7966]
[1674214871268,10.96,21.15,21.142,116.7966]
[1674214871584,17.96,21.149,21.139,34.63]
[1674214871796,10.96,21.148,21.133,43.06]
[1674214872004,17.96,21.147,21.134,20.0]
[1674214872323,17.96,21.147,21.135,32.66]
[1674214872729,17.96,21.147,21.136,20.0]
[1674214873061,0.96,21.146,21.134,33.22]
[1674214873383,10.96,21.146,21.134,33.22]
[1674214873605,17.96,21.145,21.133,33.19]
[1674214873813,0.96,21.144,21.133,33.19]
[1674214874867,10.96,21.144,21.132,33.22]
[1674214875056,17.0,21.143,21.132,33.22]
[1674214877065,0.96,21.142,21.132,33.22]
[1674214877284,0.96,21.142,21.129,35.19]
[1674214877597,0.96,21.142,21.132,35.0]
[1674214880010,10.96,21.142,21.132,35.0]
[1674214880197,17.96,21.141,21.132,35.0]
[1674214880409,17.96,21.141,21.129,33.83]
[1674214880829,17.96,21.141,21.132,34.16]
[1674214881279,17.0,21.141,21.129,34.51]
[1674214882094,17.0,21.141,21.13,10.0]
[1674214882306,17.0,21.141,21.131,120.0618]
[1674214882736,0.96,21.142,21.132,10.0]
[1674214883371,17.0,21.143,21.132,10.0]
[1674214883577,17.0,21.145,21.132,10.0]
[1674214883901,1.92,21.144,21.132,10.0]
[1674214884757,35.47,21.15,21.134,10.0]
[1674214884978,115.0405,21.152,21.135,55.49]
[1674214885170,35.46,21.155,21.136,27.96]
[1674214885383,45.45,21.158,21.137,56.45]
[1674214885575,45.46,21.156,21.137,56.45]
[1674214885792,45.46,21.156,21.138,10.96]
[1674214886015,10.0,21.156,21.139,36.45]
[1674214886434,0.96,21.155,21.14,10.0]
[1674214886760,0.96,21.155,21.142,10.0]
[1674214886761,0.96,21.154,21.142,10.0]
[1674214888631,17.96,21.155,21.142,10.0]
[1674214888837,17.0,21.157,21.142,10.0]
[1674214889048,35.45,21.159,21.143,36.44]
[1674214889376,35.45,21.163,21.144,36.5385985]
[1674214889568,109.1868,21.164,21.145,53.44]
[1674214889782,109.1868,21.164,21.146,30.96]
[1674214890119,35.44,21.167,21.15,15.2]
[1674214890430,20.0,21.168,21.152,10.0]
[1674214890639,20.0,21.168,21.153,0.96]
[1674214890841,20.0,21.168,21.154,10.0]
[1674214891457,147.3036,21.169,21.154,10.0]
[1674214891796,17.96,21.168,21.154,10.0]
[1674214893161,35.44,21.169,21.155,38.92]
[1674214893376,35.43,21.173,21.156,10.0]
[1674214893594,35.43,21.174,21.158,10.0]
[1674214893984,151.4745,21.175,21.159,35.45]
[1674214894313,35.43,21.175,21.16,15.2]
[1674214894532,15.2,21.18,21.161,37.37]
[1674214894839,15.2,21.18,21.162,30.0]
[1674214895059,15.2,21.18,21.163,35.45]
[1674214895251,15.2,21.18,21.164,20.0]
[1674214895906,15.2,21.18,21.165,10.0]
[1674214896128,15.2,21.18,21.166,20.0]
[1674214896520,35.42,21.181,21.166,20.0]
[1674214896741,10.0,21.182,21.166,20.0]
[1674214896742,35.41,21.182,21.167,10.0]
[1674214896954,45.41,21.184,21.167,10.0]
[1674214898010,17.0,21.183,21.167,10.0]
[1674214898210,46.37,21.182,21.167,10.0]
[1674214898425,17.96,21.181,21.167,10.0]
[1674214899059,17.0,21.18,21.167,10.0]
[1674214899268,0.96,21.181,21.167,10.0]
[1674214899479,0.96,21.18,21.167,10.0]
[1674214899687,0.96,21.179,21.167,10.0]
[1674214905880,0.96,21.179,21.169,10.0]
[1674214906516,0.96,21.179,21.166,20.0]
[1674214906517,23.75576951,21.178,21.166,20.0]
[1674214906729,18.92,21.177,21.166,20.0]
[1674214906942,17.96,21.177,21.166,20.0]
[1674214907133,17.0,21.178,21.166,20.0]
[1674214907687,17.0,21.178,21.167,10.0]
[1674214907991,23.75576951,21.182,21.168,35.44]
[1674214908180,0.96,21.181,21.168,35.44]
[1674214908395,0.96,21.181,21.169,10.0]
[1674214908830,0.96,21.181,21.168,35.44]
[1674214909033,16.1,21.18,21.168,35.44]
[1674214909247,10.96,21.179,21.166,20.0]
[1674214909454,17.96,21.178,21.166,20.0]
[1674214909669,0.96,21.177,21.166,20.0]
[1674214909887,17.96,21.178,21.166,20.0]
[1674214910078,17.0,21.178,21.166,20.0]
[1674214912518,17.0,21.178,21.167,35.44]
[1674214912703,17.0,21.178,21.166,55.44]
[1674214914391,17.0,21.178,21.167,10.0]
[1674214914600,17.0,21.179,21.168,35.44]
[1674214914811,0.96,21.178,21.168,35.44]
[1674214915666,17.0,21.179,21.168,35.44]
[1674214917764,23.75576951,21.18,21.169,10.0]
[1674214919026,17.0,21.179,21.169,10.0]
[1674214921214,17.0,21.181,21.167,45.44]
[1674214921415,10.0,21.18,21.167,45.44]
[1674214921630,17.0,21.179,21.167,45.44]
[1674214924362,17.0,21.18,21.167,45.44]
[1674214927340,35.4,21.189,21.167,45.44]
[1674214927537,10.0,21.188,21.169,10.0]
[1674214927746,10.0,21.188,21.17,57.35]
[1674214927951,10.0,21.188,21.171,10.0]
[1674214928166,10.0,21.188,21.172,55.43]
[1674214928378,10.0,21.188,21.173,10.0]
[1674214928586,17.0,21.187,21.174,20.0]
[1674214928917,0.96,21.186,21.174,20.0]
[1674214930801,0.96,21.186,21.172,35.43]
[1674214930994,15.2,21.18,21.168,35.44]
[1674214931202,17.96,21.179,21.165,45.44]
[1674214931848,17.96,21.179,21.165,10.0]
[1674214932049,17.0,21.179,21.165,10.0]
[1674214932265,17.0,21.179,21.167,10.0]
[1674214935931,15.2,21.18,21.167,10.0]
[1674214941213,15.2,21.18,21.166,55.44]
[1674214941411,17.0,21.179,21.166,20.0]
[1674214941616,15.2,21.18,21.166,10.0]
[1674214941831,10.0,21.182,21.168,10.0]
[1674214942042,35.41,21.183,21.169,1.92]
[1674214942239,17.0,21.182,21.169,1.92]
[1674214942978,10.0,21.181,21.168,10.0]
[1674214943189,17.0,21.18,21.168,45.44]
[1674214943394,17.0,21.18,21.168,10.0]
[1674214946780,45.41,21.184,21.168,10.0]
[1674214946992,17.96,21.183,21.168,10.0]
[1674214947733,15.2,21.18,21.166,10.0]
[1674214947939,35.42,21.179,21.167,20.96]
[1674214948339,15.2,21.18,21.167,20.96]
[1674214948554,17.0,21.179,21.167,20.96]
[1674214949808,17.0,21.179,21.168,10.0]
[1674214950337,17.0,21.181,21.168,10.0]
[1674214952026,17.0,21.182,21.168,10.0]
[1674214952672,17.0,21.182,21.168,9.91067574]
[1674214953388,17.0,21.182,21.169,0.96]
[1674214953718,35.41,21.185,21.17,10.96]
[1674214954030,17.0,21.184,21.17,10.96]
[1674214955279,17.0,21.184,21.168,45.35067574]
[1674214955483,1.92,21.183,21.168,9.91067574]
[1674214955713,11.92,21.183,21.168,9.91067574]
[1674214955911,17.0,21.182,21.168,9.91067574]
[1674214956242,0.96,21.181,21.168,9.91067574]
[1674214958241,52.41,21.182,21.168,9.91067574]
[1674214958969,17.0,21.182,21.168,9.91067574]
[1674214959179,0.96,21.183,21.168,9.91067574]
[1674214959496,0.96,21.182,21.168,9.91067574]
[1674214959707,17.96,21.182,21.168,9.91067574]
[1674214960449,0.96,21.182,21.168,9.91067574]
[1674214962240,17.0,21.183,21.168,9.91067574]
[1674214962420,17.0,21.184,21.169,1.92]
[1674214962629,132.5676,21.186,21.169,1.92]
[1674214962839,37.33,21.185,21.171,10.0]
[1674214963050,17.0,21.184,21.171,10.0]
[1674214963469,18.92,21.185,21.171,10.0]
[1674214965053,17.96,21.185,21.171,10.0]
[1674214969482,17.96,21.185,21.17,10.0]
[1674214969790,10.96,21.184,21.169,35.44]
[1674214969999,53.37,21.183,21.167,30.0]
[1674214970201,10.96,21.182,21.167,30.0]
[1674214970621,17.96,21.181,21.167,30.0]
[1674214971666,17.96,21.181,21.168,10.0]
[1674214972403,17.96,21.182,21.168,10.0]
[1674214972622,17.0,21.182,21.168,10.0]
[1674214973136,17.0,21.183,21.168,45.44]
[1674214973348,0.96,21.182,21.168,45.44]
[1674214976498,1.92,21.183,21.168,45.44]
[1674214976833,45.41,21.185,21.168,45.44]
[1674214977022,10.0,21.185,21.169,1.92]
[1674214977234,10.0,21.185,21.171,10.0]
[1674214978097,17.0,21.184,21.171,10.0]
[1674214979038,10.96,21.183,21.169,35.44]
[1674214979230,17.0,21.182,21.169,35.44]
[1674214979546,17.0,21.182,21.17,10.0]
[1674214979757,0.96,21.183,21.17,10.0]
[1674214981667,0.86288971,21.183,21.17,10.0]
[1674214982082,17.0,21.184,21.17,10.0]
[1674214982612,17.0,21.185,21.172,10.0]
[1674214983677,10.0,21.184,21.172,10.0]
[1674214983858,17.0,21.183,21.169,35.44]
[1674214984068,10.0,21.182,21.169,35.44]
[1674214984281,17.0,21.181,21.169,35.44]
[1674214984592,10.0,21.18,21.169,35.44]
[1674214984806,25.18,21.18,21.167,20.0]
[1674214985015,17.0,21.179,21.167,20.0]
[1674214985226,10.0,21.178,21.166,20.0]
[1674214985456,17.0,21.177,21.166,20.0]
[1674214991343,17.0,21.179,21.167,10.0]
[1674214991654,0.96,21.178,21.167,10.0]
[1674214992053,0.96,21.178,21.166,20.0]
[1674214992271,10.96,21.178,21.165,20.0]
[1674214992467,17.0,21.177,21.165,20.0]
[1674214996159,10.96,21.176,21.165,20.0]
[1674214996366,17.0,21.175,21.165,20.0]
[1674214997841,35.42,21.179,21.165,20.0]
[1674214998061,15.18,21.18,21.166,10.0]
[1674214998372,15.18,21.18,21.168,10.0]
[1674215000043,17.0,21.179,21.168,10.0]
[1674215009195,17.0,21.179,21.167,20.0]
[1674215009613,52.42,21.179,21.167,20.0]
[1674215011620,17.0,21.179,21.167,20.0]
[1674215016987,10.0,21.178,21.167,20.0]
[1674215017175,0.96,21.177,21.166,20.0]
[1674215017385,0.96,21.176,21.166,20.0]
[1674215018341,0.96,21.176,21.167,10.0]
[1674215018554,17.96,21.176,21.167,10.0]
[1674215018746,0.96,21.176,21.167,10.0]
[1674215019166,0.96,21.177,21.167,10.0]
[1674215020115,0.96,21.178,21.167,10.0]
[1674215020319,0.96,21.177,21.167,10.0]
[1674215026725,0.96,21.178,21.167,10.0]
[1674215026936,1.92,21.178,21.166,20.0]
[1674215027145,1.92,21.178,21.165,20.0]
[1674215027146,10.96,21.177,21.165,20.0]
[1674215027476,17.96,21.176,21.164,112.4233]
[1674215027804,0.96,21.175,21.165,20.0]
[1674215028203,0.96,21.175,21.165,54.45]
[1674215029698,0.96,21.175,21.165,34.45]
[1674215029905,15.2,21.17,21.159,33.86]
[1674215030114,17.0,21.169,21.158,41.39]
[1674215031051,17.0,21.169,21.158,31.39]
[1674215031373,1.92,21.168,21.158,31.39]
[1674215031583,1.92,21.168,21.155,32.33]
[1674215031797,11.92,21.168,21.156,20.0]
[1674215032129,17.0,21.167,21.157,32.05]
[1674215033721,17.0,21.167,21.156,20.0]
[1674215034006,17.0,21.167,21.157,10.0]
[1674215034191,1.92,21.168,21.157,10.0]
[1674215036735,17.0,21.169,21.157,44.24]
[1674215036947,15.2,21.17,21.157,44.24]
[1674215037255,15.23,21.17,21.158,1.92]
[1674215037783,15.23,21.17,21.16,10.0]
[1674215038202,17.0,21.169,21.16,10.0]
[1674215038820,15.23,21.17,21.16,10.0]
[1674215041253,15.23,21.17,21.161,35.45]
[1674215041451,15.23,21.17,21.162,10.0]
[1674215041785,35.42,21.177,21.162,10.0]
[1674215041981,15.27,21.18,21.164,10.0]
[1674215042185,15.27,21.18,21.165,55.44]
[1674215042824,10.0,21.179,21.165,20.0]
[1674215043027,17.96,21.178,21.165,20.0]
[1674215043240,0.96,21.177,21.165,20.0]
[1674215043451,0.96,21.176,21.165,20.0]
[1674215043658,0.96,21.176,21.163,35.45]
[1674215043659,0.96,21.175,21.163,35.45]
[1674215043868,0.96,21.174,21.162,35.45]
[1674215044080,17.96,21.174,21.162,35.45]
[1674215044405,10.0,21.173,21.162,35.45]
[1674215044622,17.0,21.172,21.161,35.45]
[1674215047879,17.0,21.174,21.162,10.0]
[1674215048097,17.96,21.175,21.162,10.0]
[1674215048300,17.0,21.176,21.162,10.0]
[1674215049747,1.92,21.175,21.162,10.0]
[1674215049965,11.92,21.175,21.162,10.0]
[1674215050300,15.09,21.17,21.162,10.0]
[1674215050720,17.0,21.169,21.162,10.0]
[1674215051332,15.09,21.17,21.162,10.0]
[1674215051850,11.92,21.175,21.162,10.0]
[1674215052065,17.0,21.174,21.162,10.0]
[1674215052295,18.92,21.175,21.162,10.0]
[1674215055554,10.0,21.174,21.158,48.72155983]
[1674215055745,10.0,21.172,21.16,16.0]
[1674215055955,15.08,21.17,21.159,16.0]
[1674215056172,15.08,21.17,21.158,25.66]
[1674215056383,15.08,21.17,21.158,10.0]
[1674215056595,18.92,21.169,21.158,10.0]
[1674215057839,54.36,21.169,21.158,10.0]
[1674215059126,18.92,21.169,21.158,10.0]
[1674215064488,18.92,21.169,21.157,10.0]
[1674215068159,54.36,21.169,21.157,10.0]
[1674215068577,18.92,21.169,21.157,10.0]
[1674215075006,1.92,21.169,21.157,10.0]
[1674215075416,35.43,21.171,21.157,10.0]
[1674215075619,35.43,21.173,21.157,10.0]
[1674215076778,35.43,21.174,21.158,0.96]
[1674215076994,0.96,21.173,21.157,10.0]
[1674215077208,17.96,21.173,21.158,0.96]
[1674215077410,17.96,21.173,21.158,1.92]
[1674215079314,17.96,21.173,21.158,0.96]
[1674215079714,36.39,21.172,21.157,10.0]
[1674215079930,17.0,21.171,21.157,10.0]
[1674215080347,17.0,21.171,21.158,1.92]
[1674215080577,17.0,21.173,21.158,1.92]
[1674215083505,35.43,21.174,21.158,18.92]
[1674215083719,35.42,21.178,21.16,10.0]
[1674215083935,0.96,21.177,21.162,10.0]
[1674215084137,35.42,21.176,21.163,20.0]
[1674215084558,0.96,21.177,21.164,10.0]
[1674215084777,0.96,21.177,21.166,10.0]
[1674215084985,0.96,21.176,21.166,10.0]
[1674215085204,0.96,21.176,21.167,20.0]
[1674215087807,36.38,21.176,21.16,10.0]
[1674215088033,10.0,21.174,21.16,10.0]
[1674215088235,53.39,21.173,21.16,10.0]
[1674215088442,0.96,21.172,21.16,10.0]
[1674215088664,0.96,21.172,21.155,41.11]
[1674215088877,35.43,21.171,21.155,10.0]
[1674215089088,18.92,21.17,21.155,10.0]
[1674215089701,1.92,21.17,21.155,10.0]
[1674215090018,54.35,21.17,21.155,10.0]
[1674215092009,69.58,21.17,21.155,10.0]
[1674215092225,69.58,21.17,21.156,20.0]
[1674215092435,10.0,21.169,21.156,20.0]
[1674215092645,54.36,21.168,21.156,20.0]
[1674215092958,10.0,21.167,21.155,20.0]
[1674215093172,52.44,21.166,21.155,20.0]
[1674215094221,17.0,21.166,21.155,20.0]
[1674215100230,0.96,21.165,21.155,20.0]
[1674215101699,0.96,21.164,21.155,20.0]
[1674215101889,0.96,21.163,21.155,20.0]
[1674215102100,0.96,21.162,21.154,20.0]
[1674215103476,0.96,21.162,21.153,113.1327]
[1674215103789,10.96,21.162,21.15,10.0]
[1674215103994,17.0,21.161,21.15,10.0]
[1674215106628,17.0,21.161,21.148,10.0]
[1674215107569,35.44,21.164,21.149,0.96]
[1674215107773,35.44,21.167,21.15,0.96]
[1674215107985,35.43,21.172,21.151,21.41]
[1674215108213,35.43,21.172,21.153,10.0]
[1674215108428,69.18576951,21.173,21.154,44.49]
[1674215108613,69.18576951,21.173,21.155,10.0]
[1674215108825,69.18576951,21.173,21.156,43.59]
[1674215109056,45.43,21.173,21.157,11.92]
[1674215110413,17.0,21.172,21.157,11.92]
[1674215112206,0.96,21.171,21.157,10.0]
[1674215112414,0.96,21.17,21.157,10.0]
[1674215112628,17.96,21.17,21.157,10.0]
[1674215116512,0.96,21.169,21.157,10.0]
[1674215116722,0.96,21.168,21.157,10.0]
[1674215119129,52.43,21.17,21.157,10.0]
[1674215119339,17.0,21.17,21.157,10.0]
[1674215125248,17.0,21.171,21.157,10.0]
[1674215127428,17.0,21.171,21.158,1.92]
[1674215128819,17.0,21.171,21.157,10.0]
[1674215129033,10.0,21.17,21.157,10.0]
[1674215129242,17.0,21.169,21.157,10.0]
[1674215130293,17.0,21.169,21.156,30.0]
[1674215131005,17.0,21.169,21.157,10.0]
[1674215132156,17.0,21.17,21.157,10.0]
[1674215133007,0.96,21.169,21.157,10.0]
[1674215133344,10.96,21.169,21.157,10.0]
[1674215133549,17.0,21.168,21.157,10.0]
[1674215133956,17.96,21.169,21.157,10.0]
[1674215137764,17.0,21.169,21.157,10.0]
[1674215138166,17.0,21.17,21.157,10.0]
[1674215139655,35.43,21.171,21.158,1.92]
[1674215139855,35.43,21.174,21.158,1.92]
[1674215140475,35.43,21.174,21.158,18.92]
[1674215140794,35.42,21.179,21.16,15.19]
[1674215141010,143.4258,21.184,21.161,84.37]
[1674215141434,10.0,21.183,21.162,10.0]
[1674215141646,15.23,21.18,21.163,20.0]
[1674215141860,35.42,21.179,21.163,20.0]